[Event "Asian Amateur-ch Women 2022"]
[Site "Muscat"]
[Date "2022.10.04"]
[Round "8.2"]
[White "Rouda Essa, Alserkal"]
[Black "Shybi Binoj"]
[Result "1/2-1/2"]
[ECO "C87"]
[WhiteElo "1893"]
[BlackElo "1402"]
[Annotator "NA RC COMBH"]
[PlyCount "98"]
[EventDate "2022.09.29"]
[EventType "swiss"]
[EventCountry "OMN"]
[SourceTitle "playchess.com"]
[Source "ChessBase"]
[SourceQuality "1"]
[TimeControl "5400+30"]

1. e4 {[%emt 0:00:03]} e5 {[%emt 0:00:14]} 2. Nf3 {[%emt 0:00:05]} Nc6 {[%emt 0:00:10]} 3. Bb5 {[%emt 0:00:05]} a6 {[%emt 0:00:17]} 4. Ba4 {[%emt 0:00:24]} d6 {[%emt 0:00:22]} 5. O-O {[%emt 0:00:04]} Bg4 {[%emt 0:00:28]} 6. c3 {[%emt 0:03:27]} Nf6 {[%emt 0:01:28]} 7. Re1 {[%emt 0:02:21]} Be7 {[%emt 0:01:18]} 8. Bxc6+ {[%emt 0:04:57]} bxc6 {[%emt 0:00:18]} 9. d4 {[%emt 0:00:09]} exd4 {[%emt 0:02:06]} 10. cxd4 {[%emt 0:00:11]} d5 {[%emt 0:01:23]} 11. e5 {[%emt 0:02:24]} Ne4 {[%emt 0:01:23]} 12. Qa4 {[%emt 0:07:49]} Bd7 {[%emt 0:02:26]} 13. Qa5 {[%emt 0:02:28]} O-O {[%emt 0:02:52]} 14. Nbd2 {[%emt 0:08:58]} Bf5 {[%emt 0:06:09]} 15. Nf1 {[%emt 0:09:58]} f6 {[%emt 0:04:30]} 16. Bf4 {[%emt 0:03:48]} Rb8 {[%emt 0:05:44]} 17. Re2 {[%emt 0:21:56]} Rb6 {[%emt 0:06:36]} 18. Ng3 {[%emt 0:08:31]} Nxg3 {[%emt 0:03:29]} 19. fxg3 {[%emt 0:00:31]} Be4 {[%emt 0:02:07]} 20. Rf2 {[%emt 0:04:59]} Qb8 {[%emt 0:02:29]} 21. Rc1 {[%emt 0:03:49]} Qa7 {[%emt 0:06:17]} 22. Qa4 {[%emt 0:02:38]} Qb7 {[%emt 0:01:49]} 23. Be3 {[%emt 0:02:22]} Rb5 {[%emt 0:03:07]} 24. Nd2 {[%emt 0:06:44]} Bg6 {[%emt 0:02:04]} 25. Nb3 {[%emt 0:01:02]} Qb6 {[%emt 0:01:14]} 26. exf6 {[%emt 0:00:18]} gxf6 {[%emt 0:00:56]} 27. Nc5 {[%emt 0:01:21]} Bxc5 {[%emt 0:01:10]} 28. dxc5 {[%emt 0:00:01]} Qb7 {[%emt 0:00:59]} 29. Bh6 {[%emt 0:01:26]} Rxb2 {[%emt 0:04:04]} 30. Rxb2 {[%emt 0:02:08]} Qxb2 {[%emt 0:00:16]} 31. Qxc6 {[%emt 0:00:18]} Be4 {[%emt 0:01:12]} 32. Qe6+ {[%emt 0:00:18]} Kh8 {[%emt 0:00:33]} 33. Qh3 {[%emt 0:00:01]} Re8 {[%emt 0:00:39]} 34. g4 {[%emt 0:01:07]} Bg6 {[%emt 0:02:06]} 35. Qf3 {[%emt 0:00:48]} Be4 {[%emt 0:05:04]} 36. Qg3 {[%emt 0:00:21]} d4 {[%emt 0:01:00]} 37. Qf2 {[%emt 0:00:38]} Qxf2+ {[%emt 0:00:40]} 38. Kxf2 {[%emt 0:00:01]} Bg6 {[%emt 0:01:31]} 39. Rc4 {[%emt 0:00:46]} d3 {[%emt 0:00:28]} 40. Be3 {[%emt 0:00:02]} Rb8 {[%emt 0:00:20]} 41. Rd4 {[%emt 0:00:26]} Rb2+ {[%emt 0:01:10]} 42. Kf3 {[%emt 0:00:16]} Rxa2 {[%emt 0:01:31]} 43. Bh6 {[%emt 0:00:55]} Re2 {[%emt 0:01:24]} 44. Rd7 {[%emt 0:00:21]} c6 {[%emt 0:01:17]} 45. Ra7 {[%emt 0:01:10]} Kg8 {[%emt 0:03:04]} 46. Rg7+ {[%emt 0:00:11]} Kh8 {[%emt 0:00:12]} 47. Ra7 {[%emt 0:00:07]} Kg8 {[%emt 0:02:44]} 48. Rg7+ {[%emt 0:00:05]} Kh8 {[%emt 0:00:03]} 49. Ra7 {[%emt 0:00:03]} Kg8 {[%emt 0:22:17]} 1/2-1/2

[Event "Asian Amateur-ch Women 2022"]
[Site "Muscat"]
[Date "2022.10.04"]
[Round "8.3"]
[White "Sawan, Eman"]
[Black "Amulya Guruprasad"]
[Result "1-0"]
[ECO "C50"]
[WhiteElo "1840"]
[BlackElo "1278"]
[Annotator "NA RC COMBH"]
[PlyCount "21"]
[EventDate "2022.09.29"]
[EventType "swiss"]
[EventCountry "OMN"]
[SourceTitle "playchess.com"]
[Source "ChessBase"]
[SourceQuality "1"]
[TimeControl "5400+30"]

1. e4 {[%emt 0:00:02]} e5 {[%emt 0:00:02]} 2. Nf3 {[%emt 0:00:07]} Nc6 {[%emt 0:00:06]} 3. Bc4 {[%emt 0:00:08]} f5 {[%emt 0:00:14]} 4. d4 {[%emt 0:07:18]} fxe4 {[%emt 0:00:09]} 5. Nxe5 {[%emt 0:01:41]} Nxe5 {[%emt 0:00:36]} 6. dxe5 {[%emt 0:01:26]} Ne7 {[%emt 0:08:05]} 7. Nc3 {[%emt 0:12:11]} b6 {[%emt 0:01:33]} 8. Nxe4 {[%emt 0:05:45]} h6 {[%emt 0:00:07]} 9. Qh5+ {[%emt 0:00:36]} Ng6 {[%emt 0:00:30]} 10. Qxg6+ {[%emt 0:00:07]} Ke7 {[%emt 0:00:02]} 11. Qf7# {[%emt 0:00:08]} 1-0

[Event "Asian Amateur-ch Women 2022"]
[Site "Muscat"]
[Date "2022.10.04"]
[Round "8.4"]
[White "Al Mansouri, Moza"]
[Black "Al-Khelaifi, Aisha"]
[Result "1-0"]
[ECO "C42"]
[WhiteElo "1610"]
[BlackElo "1678"]
[Annotator "NA RC COMBH"]
[PlyCount "65"]
[EventDate "2022.09.29"]
[EventType "swiss"]
[EventCountry "OMN"]
[SourceTitle "playchess.com"]
[Source "ChessBase"]
[SourceQuality "1"]
[TimeControl "5400+30"]

1. e4 {[%emt 0:00:05]} e5 {[%emt 0:00:06]} 2. Nf3 {[%emt 0:00:04]} Nf6 {[%emt 0:00:06]} 3. Nc3 {[%emt 0:00:17]} Bb4 {[%emt 0:00:42]} 4. Nxe5 {[%emt 0:00:55]} O-O {[%emt 0:00:57]} 5. Nd3 {[%emt 0:00:43]} Bxc3 {[%emt 0:01:48]} 6. dxc3 {[%emt 0:00:06]} Nxe4 {[%emt 0:00:17]} 7. Be3 {[%emt 0:00:21]} d6 {[%emt 0:02:37]} 8. Qf3 {[%emt 0:01:17]} Nf6 {[%emt 0:02:28]} 9. h3 {[%emt 0:00:53]} c6 {[%emt 0:01:21]} 10. O-O-O {[%emt 0:02:16]} Be6 {[%emt 0:05:48]} 11. Nf4 {[%emt 0:05:47]} Bc8 {[%emt 0:04:34]} 12. g4 {[%emt 0:02:17]} d5 {[%emt 0:05:14]} 13. Bd3 {[%emt 0:03:51]} Nbd7 {[%emt 0:04:01]} 14. g5 {[%emt 0:03:59]} Ne5 {[%emt 0:03:27]} 15. Qg2 {[%emt 0:02:57]} Nxd3+ {[%emt 0:02:08]} 16. cxd3 {[%emt 0:00:01]} Nd7 {[%emt 0:00:27]} 17. h4 {[%emt 0:02:30]} Ne5 {[%emt 0:07:17]} 18. Bd4 {[%emt 0:05:18]} Qc7 {[%emt 0:05:14]} 19. Nh5 {[%emt 0:03:10]} Bf5 {[%emt 0:07:47]} 20. Qg3 {[%emt 0:03:33]} Rae8 {[%emt 0:03:46]} 21. f4 {[%emt 0:01:43]} Bg6 {[%emt 0:10:22]} 22. Nxg7 {[%emt 0:04:39]} Nxd3+ {[%emt 0:09:39]} 23. Rxd3 {[%emt 0:00:15]} Bxd3 {[%emt 0:00:17]} 24. Nxe8 {[%emt 0:00:16]} Rxe8 {[%emt 0:00:14]} 25. Qxd3 {[%emt 0:00:25]} Qxf4+ {[%emt 0:00:20]} 26. Kb1 {[%emt 0:02:06]} b6 {[%emt 0:00:43]} 27. h5 {[%emt 0:07:08]} Re6 {[%emt 0:09:27]} 28. Rf1 {[%emt 0:03:14]} Qg4 {[%emt 0:01:35]} 29. Qf3 {[%emt 0:03:45]} Qe4+ {[%emt 0:01:16]} 30. Qxe4 {[%emt 0:00:13]} Rxe4 {[%emt 0:00:11]} 31. b4 {[%emt 0:00:38]} Kf8 {[%emt 0:01:14]} 32. g6 {[%emt 0:00:25]} hxg6 {[%emt 0:00:30]} 33. hxg6 {[%emt 0:00:01]} 1-0

[Event "Asian Amateur-ch Women 2022"]
[Site "Muscat"]
[Date "2022.10.04"]
[Round "8.5"]
[White "Al-Khelaifi, Salama"]
[Black "Abeysinghe, H M H Janandani"]
[Result "1-0"]
[ECO "B06"]
[WhiteElo "1798"]
[BlackElo "1546"]
[Annotator "NA RC COMBH"]
[PlyCount "83"]
[EventDate "2022.09.29"]
[EventType "swiss"]
[EventCountry "OMN"]
[SourceTitle "playchess.com"]
[Source "ChessBase"]
[SourceQuality "1"]
[TimeControl "5400+30"]

1. d4 {[%emt 0:00:05]} g6 {[%emt 0:00:09]} 2. Nc3 {[%emt 0:00:08]} Bg7 {[%emt 0:00:04]} 3. e4 {[%emt 0:00:10]} d6 {[%emt 0:00:05]} 4. Be3 {[%emt 0:00:09]} a6 {[%emt 0:00:15]} 5. Qd2 {[%emt 0:01:58]} Nd7 {[%emt 0:00:24]} 6. O-O-O {[%emt 0:02:09]} b5 {[%emt 0:00:28]} 7. Kb1 {[%emt 0:01:58]} Bb7 {[%emt 0:00:45]} 8. f3 {[%emt 0:00:55]} Rc8 {[%emt 0:01:19]} 9. Nce2 {[%emt 0:15:02]} Nb6 {[%emt 0:05:44]} 10. Nc1 {[%emt 0:01:30]} h5 {[%emt 0:03:25]} 11. Nh3 {[%emt 0:06:19]} Nf6 {[%emt 0:01:53]} 12. Bg5 {[%emt 0:06:09]} Nfd7 {[%emt 0:01:51]} 13. Be3 {[%emt 0:05:51]} c5 {[%emt 0:02:36]} 14. Ng5 {[%emt 0:00:47]} Qc7 {[%emt 0:06:54]} 15. d5 {[%emt 0:06:22]} Na4 {[%emt 0:02:35]} 16. c3 {[%emt 0:04:30]} b4 {[%emt 0:07:33]} 17. Qc2 {[%emt 0:00:51]} Ndb6 {[%emt 0:02:05]} 18. Nd3 {[%emt 0:05:43]} bxc3 {[%emt 0:04:01]} 19. b3 {[%emt 0:00:40]} Nb2 {[%emt 0:02:33]} 20. Nxb2 {[%emt 0:02:30]} cxb2 {[%emt 0:00:05]} 21. f4 {[%emt 0:04:14]} O-O {[%emt 0:00:58]} 22. Be2 {[%emt 0:02:07]} a5 {[%emt 0:03:01]} 23. Bxh5 {[%emt 0:07:56]} c4 {[%emt 0:05:00]} 24. Bxg6 {[%emt 0:03:13]} Na8 {[%emt 0:15:29]} 25. e5 {[%emt 0:03:21]} Bh6 {[%emt 0:10:02]} 26. Bh7+ {[%emt 0:03:06]} Kh8 {[%emt 0:01:12]} 27. Bg8 {[%emt 0:02:27]} f5 {[%emt 0:00:59]} 28. Ne6 {[%emt 0:09:55]} cxb3 {[%emt 0:02:24]} 29. Qxc7 {[%emt 0:00:39]} bxa2+ {[%emt 0:00:28]} 30. Kxa2 {[%emt 0:00:03]} Nxc7 {[%emt 0:00:08]} 31. Nxf8 {[%emt 0:00:42]} Rxf8 {[%emt 0:00:06]} 32. exd6 {[%emt 0:00:27]} Nb5 {[%emt 0:02:52]} 33. dxe7 {[%emt 0:02:41]} Rxg8 {[%emt 0:00:32]} 34. d6 {[%emt 0:00:08]} Nc3+ {[%emt 0:10:22]} 35. Kxb2 {[%emt 0:00:38]} Nxd1+ {[%emt 0:00:05]} 36. Rxd1 {[%emt 0:00:18]} Bg7+ {[%emt 0:01:29]} 37. Ka3 {[%emt 0:00:51]} Bc6 {[%emt 0:03:43]} 38. d7 {[%emt 0:00:21]} Bxd7 {[%emt 0:00:41]} 39. Rxd7 {[%emt 0:00:02]} Bf6 {[%emt 0:01:15]} 40. Bd4 {[%emt 0:00:32]} Bxd4 {[%emt 0:00:13]} 41. Rxd4 {[%emt 0:00:01]} Kg7 {[%emt 0:00:59]} 42. Rd8 {[%emt 0:00:02]} 1-0

[Event "Asian Amateur-ch Women 2022"]
[Site "Muscat"]
[Date "2022.10.04"]
[Round "8.6"]
[White "Al Kalbani, Wadima"]
[Black "Khalil, Hanan"]
[Result "1-0"]
[ECO "B07"]
[WhiteElo "1554"]
[BlackElo "1484"]
[Annotator "NA RC COMBH"]
[PlyCount "130"]
[EventDate "2022.09.29"]
[EventType "swiss"]
[EventCountry "OMN"]
[SourceTitle "playchess.com"]
[Source "ChessBase"]
[SourceQuality "1"]
[TimeControl "5400+30"]

1. e4 {[%emt 0:53:54]} d6 {[%emt 0:57:27]} 2. d4 {[%emt 0:00:30]} Nf6 {[%emt 0:00:30]} 3. Nc3 {[%emt 0:00:30]} e5 {[%emt 0:00:30]} 4. Nge2 {[%emt 0:00:30]} Nbd7 {[%emt 0:00:30]} 5. h3 {[%emt 0:00:30]} Be7 {[%emt 0:00:30]} 6. g4 {[%emt 0:00:30]} h6 {[%emt 0:00:30]} 7. Bg2 {[%emt 0:00:30]} c6 {[%emt 0:00:30]} 8. a4 {[%emt 0:00:30]} a5 {[%emt 0:00:30]} 9. O-O {[%emt 0:00:30]} Qc7 {[%emt 0:00:30]} 10. Ng3 {[%emt 0:00:30]} Nf8 {[%emt 0:00:30]} 11. Nf5 {[%emt 0:00:30]} Bxf5 {[%emt 0:00:30]} 12. exf5 {[%emt 0:00:30]} g6 {[%emt 0:00:30]} 13. dxe5 {[%emt 0:00:30]} dxe5 {[%emt 0:00:30]} 14. Re1 {[%emt 0:00:30]} gxf5 {[%emt 0:00:30]} 15. gxf5 {[%emt 0:00:30]} N8d7 {[%emt 0:00:30]} 16. Be3 {[%emt 0:00:30]} O-O-O {[%emt 0:00:30]} 17. Qe2 {[%emt 0:00:30]} Rdg8 {[%emt 0:00:30]} 18. Kh1 {[%emt 0:00:30]} Rg7 {[%emt 0:00:30]} 19. Rg1 {[%emt 0:00:30]} Rhg8 {[%emt 0:00:30]} 20. Bf3 {[%emt 0:00:30]} e4 {[%emt 0:00:30]} 21. Nxe4 {[%emt 0:00:30]} Nxe4 {[%emt 0:00:30]} 22. Bxe4 {[%emt 0:00:30]} Qe5 {[%emt 0:00:30]} 23. Bxh6 {[%emt 0:00:30]} Rxg1+ {[%emt 0:00:30]} 24. Rxg1 {[%emt 0:00:30]} Rh8 {[%emt 0:00:30]} 25. Bc1 {[%emt 0:00:30]} Rxh3+ {[%emt 0:00:30]} 26. Kg2 {[%emt 0:00:30]} Rh2+ {[%emt 0:00:30]} 27. Kf1 {[%emt 0:00:30]} Bc5 {[%emt 0:00:30]} 28. Bg2 {[%emt 0:00:30]} Qxf5 {[%emt 0:00:30]} 29. Rh1 {[%emt 0:00:30]} Rxh1+ {[%emt 0:00:30]} 30. Bxh1 {[%emt 0:00:30]} Ne5 {[%emt 0:00:30]} 31. Be4 {[%emt 0:00:30]} Qf6 {[%emt 0:00:30]} 32. Be3 {[%emt 0:00:30]} Bxe3 {[%emt 0:00:30]} 33. Qxe3 {[%emt 0:00:30]} Nc4 {[%emt 0:00:30]} 34. Qh3+ {[%emt 0:00:30]} Kb8 {[%emt 0:00:30]} 35. Qg3+ {[%emt 0:00:30]} Ka7 {[%emt 0:00:30]} 36. Bd3 {[%emt 0:00:30]} Nxb2 {[%emt 0:00:30]} 37. Qe3+ {[%emt 0:00:30]} Kb8 {[%emt 0:00:30]} 38. Qb6 {[%emt 0:00:30]} Nxd3 {[%emt 0:00:30]} 39. cxd3 {[%emt 0:00:30]} Qg5 {[%emt 0:00:30]} 40. Qb3 {[%emt 0:00:30]} Qd5 {[%emt 0:00:30]} 41. Qa3 {[%emt 0:00:30]} Qd8 {[%emt 0:00:30]} 42. Qb3 {[%emt 0:00:30]} Qd7 {[%emt 0:00:30]} 43. Kg1 {[%emt 0:00:30]} Qg4+ {[%emt 0:00:30]} 44. Kf1 {[%emt 0:00:30]} Qh3+ {[%emt 0:00:30]} 45. Kg1 {[%emt 0:00:30]} Qe6 {[%emt 0:00:30]} 46. Qa3 {[%emt 0:00:30]} Qe1+ {[%emt 0:00:30]} 47. Kg2 {[%emt 0:00:30]} Qb4 {[%emt 0:00:30]} 48. Qa2 {[%emt 0:00:30]} Qg4+ {[%emt 0:00:30]} 49. Kh1 {[%emt 0:00:30]} Qh3+ {[%emt 0:00:30]} 50. Kg1 {[%emt 0:00:30]} Qxd3 {[%emt 0:00:30]} 51. Kh2 {[%emt 0:00:30]} Qd6+ {[%emt 0:00:30]} 52. Kg1 {[%emt 0:00:30]} Qd5 {[%emt 0:00:30]} 53. Qa1 {[%emt 0:00:30]} Qg5+ {[%emt 0:00:30]} 54. Kf1 {[%emt 0:00:30]} Qh5 {[%emt 0:00:30]} 55. Kg1 {[%emt 0:00:30]} Qg6+ {[%emt 0:00:30]} 56. Kf1 {[%emt 0:00:30]} Qd3+ {[%emt 0:00:30]} 57. Kg2 {[%emt 0:00:30]} Qe4+ {[%emt 0:00:30]} 58. Kg1 {[%emt 0:00:30]} f5 {[%emt 0:00:30]} 59. Qa3 {[%emt 0:00:30]} Qg4+ {[%emt 0:00:30]} 60. Kf1 {[%emt 0:00:30]} Qb4 {[%emt 0:00:30]} 61. Qa1 {[%emt 0:00:30]} f4 {[%emt 0:00:30]} 62. Kg2 {[%emt 0:00:30]} Qe4+ {[%emt 0:00:30]} 63. Kh2 {[%emt 0:00:30]} f3 {[%emt 0:00:30]} 64. Kg3 {[%emt 0:00:30]} Ka7 {[%emt 0:00:30]} 65. Qa3 {[%emt 0:00:30]} Qd5 {[%emt 0:00:30]} 1-0

[Event "Asian Amateur-ch Women 2022"]
[Site "Muscat"]
[Date "2022.10.04"]
[Round "8.7"]
[White "Dakshikaa S M"]
[Black "Al-Khulaifi, Ghada"]
[Result "0-1"]
[ECO "C54"]
[WhiteElo "1117"]
[BlackElo "1620"]
[Annotator "NA RC COMBH"]
[PlyCount "130"]
[EventDate "2022.09.29"]
[EventType "swiss"]
[EventCountry "OMN"]
[SourceTitle "playchess.com"]
[Source "ChessBase"]
[SourceQuality "1"]
[TimeControl "5400+30"]

1. e4 {[%emt 0:00:03]} e5 {[%emt 0:00:06]} 2. Nf3 {[%emt 0:00:02]} Nc6 {[%emt 0:00:11]} 3. Bc4 {[%emt 0:00:12]} Bc5 {[%emt 0:00:13]} 4. c3 {[%emt 0:00:08]} Nf6 {[%emt 0:00:10]} 5. d4 {[%emt 0:00:32]} exd4 {[%emt 0:00:27]} 6. e5 {[%emt 0:00:11]} d5 {[%emt 0:00:14]} 7. Bb5 {[%emt 0:00:19]} Ne4 {[%emt 0:00:17]} 8. cxd4 {[%emt 0:00:22]} Bb6 {[%emt 0:00:08]} 9. Nc3 {[%emt 0:00:51]} O-O {[%emt 0:00:43]} 10. Be3 {[%emt 0:00:28]} Bg4 {[%emt 0:00:48]} 11. h3 {[%emt 0:04:29]} Bh5 {[%emt 0:01:12]} 12. Qc2 {[%emt 0:02:06]} Bg6 {[%emt 0:03:43]} 13. Qb3 {[%emt 0:00:37]} Ba5 {[%emt 0:00:57]} 14. O-O {[%emt 0:04:33]} Bxc3 {[%emt 0:01:04]} 15. bxc3 {[%emt 0:00:54]} Ne7 {[%emt 0:06:25]} 16. Be2 {[%emt 0:12:33]} Rb8 {[%emt 0:06:34]} 17. Nh4 {[%emt 0:14:35]} f5 {[%emt 0:07:19]} 18. Bf4 {[%emt 0:16:56]} Bf7 {[%emt 0:14:24]} 19. f3 {[%emt 0:03:29]} g5 {[%emt 0:00:30]} 20. fxe4 {[%emt 0:00:38]} dxe4 {[%emt 0:00:12]} 21. e6 {[%emt 0:00:20]} gxf4 {[%emt 0:04:00]} 22. exf7+ {[%emt 0:00:15]} Kh8 {[%emt 0:01:13]} 23. Qe6 {[%emt 0:05:35]} Qd6 {[%emt 0:04:37]} 24. Bc4 {[%emt 0:04:34]} b5 {[%emt 0:01:14]} 25. Qxd6 {[%emt 0:01:45]} cxd6 {[%emt 0:00:05]} 26. Be6 {[%emt 0:00:45]} d5 {[%emt 0:03:37]} 27. Rxf4 {[%emt 0:01:35]} Rb6 {[%emt 0:00:40]} 28. Bxf5 {[%emt 0:01:19]} Rxf7 {[%emt 0:00:11]} 29. Rb1 {[%emt 0:09:03]} Ng6 {[%emt 0:02:08]} 30. Nxg6+ {[%emt 0:00:53]} hxg6 {[%emt 0:00:21]} 31. Rh4+ {[%emt 0:00:31]} Kg7 {[%emt 0:00:28]} 32. Bg4 {[%emt 0:00:36]} Rc7 {[%emt 0:03:30]} 33. Rb3 {[%emt 0:01:32]} a5 {[%emt 0:00:49]} 34. a4 {[%emt 0:04:34]} b4 {[%emt 0:00:38]} 35. cxb4 {[%emt 0:00:32]} Rxb4 {[%emt 0:01:33]} 36. Rxb4 {[%emt 0:00:39]} axb4 {[%emt 0:00:02]} 37. Be6 {[%emt 0:01:02]} b3 {[%emt 0:05:42]} 38. Bxd5 {[%emt 0:00:21]} b2 {[%emt 0:00:02]} 39. Bxe4 {[%emt 0:00:39]} Re7 {[%emt 0:02:41]} 40. Bd3 {[%emt 0:01:30]} Re3 {[%emt 0:00:06]} 41. Re4 {[%emt 0:03:34]} Rxd3 {[%emt 0:00:21]} 42. Re1 {[%emt 0:00:05]} Rc3 {[%emt 0:00:12]} 43. Re7+ {[%emt 0:02:31]} Kf6 {[%emt 0:00:29]} 44. Rb7 {[%emt 0:00:27]} Rc1+ {[%emt 0:00:10]} 45. Kf2 {[%emt 0:00:39]} b1=Q {[%emt 0:00:05]} 46. Rxb1 {[%emt 0:00:11]} Rxb1 {[%emt 0:00:02]} 47. Ke3 {[%emt 0:00:21]} Ra1 {[%emt 0:00:10]} 48. Ke4 {[%emt 0:00:18]} Rxa4 {[%emt 0:00:23]} 49. h4 {[%emt 0:00:18]} Ke6 {[%emt 0:01:20]} 50. g4 {[%emt 0:00:16]} Ra5 {[%emt 0:00:15]} 51. g5 {[%emt 0:00:34]} Rd5 {[%emt 0:00:21]} 52. Ke3 {[%emt 0:00:38]} Kf5 {[%emt 0:00:07]} 53. Kf3 {[%emt 0:00:18]} Rxd4 {[%emt 0:00:06]} 54. Kg3 {[%emt 0:00:24]} Rd3+ {[%emt 0:00:15]} 55. Kh2 {[%emt 0:00:28]} Kg4 {[%emt 0:00:05]} 56. Kg2 {[%emt 0:00:13]} Kxh4 {[%emt 0:00:16]} 57. Kh2 {[%emt 0:00:16]} Rd2+ {[%emt 0:00:35]} 58. Kg1 {[%emt 0:00:04]} Kxg5 {[%emt 0:01:49]} 59. Kf1 {[%emt 0:00:16]} Kf4 {[%emt 0:00:05]} 60. Ke1 {[%emt 0:00:14]} Ke3 {[%emt 0:00:09]} 61. Kf1 {[%emt 0:00:14]} Re2 {[%emt 0:01:46]} 62. Kg1 {[%emt 0:00:08]} Rf2 {[%emt 0:00:14]} 63. Kh1 {[%emt 0:00:07]} Kf3 {[%emt 0:00:12]} 64. Kg1 {[%emt 0:00:08]} Kg3 {[%emt 0:00:10]} 65. Kh1 {[%emt 0:00:05]} Rf1# {[%emt 0:00:04]} 0-1

[Event "Asian Amateur-ch Women 2022"]
[Site "Muscat"]
[Date "2022.10.04"]
[Round "8.8"]
[White "Al Aisaee, Anat"]
[Black "Amal Fadel S M Alshamsi"]
[Result "1/2-1/2"]
[ECO "C45"]
[WhiteElo "1628"]
[BlackElo "1404"]
[Annotator "NA RC COMBH"]
[PlyCount "92"]
[EventDate "2022.09.29"]
[EventType "swiss"]
[EventCountry "OMN"]
[SourceTitle "playchess.com"]
[Source "ChessBase"]
[SourceQuality "1"]
[TimeControl "5400+30"]

1. e4 {[%emt 0:00:02]} e5 {[%emt 0:00:21]} 2. Nf3 {[%emt 0:00:10]} Nc6 {[%emt 0:00:03]} 3. d4 {[%emt 0:00:15]} exd4 {[%emt 0:00:04]} 4. Nxd4 {[%emt 0:00:07]} Nf6 {[%emt 0:00:03]} 5. Nxc6 {[%emt 0:00:31]} bxc6 {[%emt 0:00:04]} 6. Bd3 {[%emt 0:00:10]} d5 {[%emt 0:06:26]} 7. exd5 {[%emt 0:00:30]} cxd5 {[%emt 0:01:55]} 8. O-O {[%emt 1:32:45]} Be7 {[%emt 0:00:54]} 9. c4 {[%emt 0:00:00]} d4 {[%emt 0:09:12]} 10. Nd2 {[%emt 0:00:00]} O-O {[%emt 0:01:13]} 11. Ne4 {[%emt 0:00:00]} Bb7 {[%emt 0:04:02]} 12. Qc2 {[%emt 0:00:00]} h6 {[%emt 0:14:46]} 13. Nxf6+ {[%emt 0:00:00]} Bxf6 {[%emt 0:00:19]} 14. Bd2 {[%emt 0:00:00]} c5 {[%emt 0:04:39]} 15. Rfe1 {[%emt 0:00:00]} Qd6 {[%emt 0:13:48]} 16. Be4 {[%emt 0:00:00]} Bxe4 {[%emt 0:02:43]} 17. Qxe4 {[%emt 0:00:00]} Rfe8 {[%emt 0:05:14]} 18. Qf3 {[%emt 0:00:00]} Be5 {[%emt 0:02:20]} 19. h3 {[%emt 0:00:00]} Rab8 {[%emt 0:04:37]} 20. b3 {[%emt 0:00:00]} Rb6 {[%emt 0:05:52]} 21. Qg4 {[%emt 0:00:00]} d3 {[%emt 0:04:15]} 22. Rad1 {[%emt 0:00:00]} Ra6 {[%emt 0:07:53]} 23. a4 {[%emt 0:00:00]} Rb6 {[%emt 0:00:49]} 24. Bf4 {[%emt 0:00:00]} Re6 {[%emt 0:03:55]} 25. Bxe5 {[%emt 0:00:00]} Rxe5 {[%emt 0:00:26]} 26. Rxe5 {[%emt 0:00:00]} Qxe5 {[%emt 0:00:01]} 27. Rxd3 {[%emt 0:00:00]} Qe1+ {[%emt 0:02:41]} 28. Kh2 {[%emt 0:00:00]} Qxf2 {[%emt 0:03:03]} 29. Rf3 {[%emt 0:00:00]} Qb2 {[%emt 0:02:20]} 30. Qc8+ {[%emt 0:00:00]} Kh7 {[%emt 0:00:03]} 31. Qxc5 {[%emt 0:00:00]} Rg6 {[%emt 0:00:33]} 32. Qf2 {[%emt 0:00:00]} Qe5+ {[%emt 0:00:14]} 33. Kg1 {[%emt 0:00:00]} Qa1+ {[%emt 0:00:15]} 34. Qf1 {[%emt 0:00:00]} Qd4+ {[%emt 0:00:07]} 35. Kh1 {[%emt 0:00:00]} Qb2 {[%emt 0:01:58]} 36. Rxf7 {[%emt 0:00:00]} Qxb3 {[%emt 0:00:15]} 37. Rxa7 {[%emt 0:00:00]} Qb6 {[%emt 0:00:28]} 38. Rf7 {[%emt 0:00:00]} Qa5 {[%emt 0:00:52]} 39. Qb1 {[%emt 0:00:00]} Qxa4 {[%emt 0:00:25]} 40. Rf2 {[%emt 0:00:00]} Qxc4 {[%emt 0:00:29]} 41. Rb2 {[%emt 0:01:35]} Qc6 {[%emt 0:00:35]} 42. Ra2 {[%emt 0:00:32]} Qb6 {[%emt 0:00:28]} 43. Rb2 {[%emt 0:00:12]} Qc6 {[%emt 0:00:05]} 44. Ra2 {[%emt 0:00:11]} Qb6 {[%emt 0:00:12]} 45. Rb2 {[%emt 0:00:11]} Qc6 {[%emt 0:00:03]} 46. Ra2 {[%emt 0:01:18]} Qb6 {[%emt 0:00:03]} 1/2-1/2